Cogmind - Beta 16 @@@ ROGUE MODE // 2025.10.27 @ 22:53:53 Player: Biba Result: Destroyed by Dirty Bomb Trap Performance ------------- Evolutions (3) 1500 Regions Visited (5) 1000 Robots Destroyed (20) 100 Value Destroyed (403) 403 Prototype IDs (0) 0 Alien Tech Used (0) 0 Bonus (0) 0 TOTAL SCORE: 3003 Bonus ------- None Cogmind --------- Core Integrity 0/700 Matter 282/300 Energy 98/100 System Corruption 8% Temperature Cool (0) Movement Core (50) Location -7/Lower Caves Parts ------- > --- POWER (1) -------- (None) > --- PROPULSION (3) --- (None) > --- UTILITY (7) ------ Launcher Guidance Computer System Shield > --- WEAPON (2) ------- Spear > --- INVENTORY (5) ---- Micro Nuclear Core Small Storage Unit Heavy Rocket Launcher Improved Datajack Peak State ------------ > --- POWER ------------ Micro Nuclear Core > --- PROPULSION ------- (None) > --- UTILITY ---------- Launcher Guidance Computer > --- WEAPON ----------- Advanced Assault Cannon Spear > --- INVENTORY -------- VTOL Module Small Storage Unit Heavy Rocket Launcher Improved Datajack [Rating: 17] Favorites ----------- Power Ion Engine Engine Ion Engine Power Core Micro Nuclear Core Propulsion Aluminum Leg Treads Light Treads Leg Aluminum Leg Wheel Compact Wheel Utility Seismic Detector Device Seismic Detector Storage High-capacity Storage Unit Processor Launcher Guidance Computer Hackware System Shield Weapon Medium Laser Energy Gun Medium Laser Ballistic Gun Assault Rifle Ballistic Cannon Advanced Assault Cannon Launcher Heavy Rocket Launcher Piercing Weapon Spear Build | -11 -10 -9 -8 -7 -7 ------- Run | Yrd Mat Mat Mat Fac Low Slots Evolved 6 | . . 2 2 2 . Power . | . . . . . . Propulsion 1 | . . . 1 . . Utility 5 | . . 2 1 2 . Weapon . | . . . . . . Parts Attached 23 | 8 4 2 1 8 . Power 2 | 1 . . . 1 . Engine 1 | 1 . . . . . Core 1 | . . . . 1 . Reactor . | . . . . . . Propulsion 6 | 2 2 2 . . . Treads 2 | . . 2 . . . Leg 2 | 2 . . . . . Wheel 2 | . 2 . . . . Hover . | . . . . . . Flight . | . . . . . . Utility 6 | 2 1 . . 3 . Device 2 | 1 . . . 1 . Storage 2 | 1 1 . . . . Processor 1 | . . . . 1 . Hackware 1 | . . . . 1 . Protection . | . . . . . . Artifact . | . . . . . . Weapon 9 | 3 1 . 1 4 . Energy Gun 2 | 1 1 . . . . Energy Cannon . | . . . . . . Ballistic Gun 4 | 2 . . 1 1 . Ballistic Cannon 1 | . . . . 1 . Launcher 1 | . . . . 1 . Special Weapon . | . . . . . . Impact Weapon . | . . . . . . Slashing Weapon . | . . . . . . Piercing Weapon 1 | . . . . 1 . Special Melee Weapon . | . . . . . . Unidentified Prototypes . | . . . . . . Parts Lost 8 | . . 7 . 1 . Power 1 | . . 1 . . . Propulsion 2 | . . 2 . . . Utility 2 | . . 1 . 1 . Weapon 3 | . . 3 . . . Highest Loss Streak 7 | . . 7 . 1 . To Critical Strikes . | . . . . . . Average Backups 4 | 4 6 6 5 3 3 Power . | . 1 1 . . 1 Propulsion 2 | 2 4 3 4 . . Utility . | . . 1 1 1 1 Weapon . | . 1 . . . . Tool/Special . | . . . . . . Unused Backups 6 | . . 1 . 4 1 Power 1 | . . 1 . . . Propulsion 2 | . . . . 2 . Utility . | . . . . . . Weapon 2 | . . . . 2 . Tool/Special 1 | . . . . . 1 Average Slot Usage (%) 39 | . 100 67 2 11 23 Engine 4 | . 14 10 . . . Leg 3 | . 18 . . . . Wheel 5 | . 9 19 . . . Device 5 | . 14 8 . 3 . Storage 4 | . 14 10 . . . Processor 1 | . . . . 1 7 Energy Gun 7 | . 21 16 . . . Ballistic Gun 1 | . 6 1 2 . . Piercing Weapon 2 | . . . . 5 7 Peak Build Rating 17 | 7 7 7 1 17 15 Average Rating 6 | 5 6 6 . 6 12 On Entrance 4 | . 7 7 . . 12 Avg Prop Armor Cover (%) . | . . . . . . Naked Turns 96 | . . 7 58 31 . Heaviest Build 49 | 15 49 49 . 9 9 Greatest Support 40 | 20 26 40 3 3 3 Greatest Overweight (x) 4 | 4 1 1 . 2 2 Average Overweight (x) . | . . . . . . Largest Inventory Capacity 20 | 8 20 20 5 5 5 Average Capacity 9 | 7 12 19 5 5 5 Most Carried 8 | 6 8 7 5 5 4 Average Carried 4 | 4 6 6 5 3 3 Final Capacity 20 | 8 20 5 5 5 5 Final Carried 7 | 6 7 5 5 4 4 Class Distribution -------------------- 100% | Mutant Dominant Class ---------------- Mutant | -10/Materials Mutant | -9/Materials Mutant | -8/Materials Mutant | -7/Factory Mutant | -7/Lower Caves Resources | -11 -10 -9 -8 -7 -7 ----------- Run | Yrd Mat Mat Mat Fac Low Matter Collected 554 | 256 45 13 . 169 71 Remotely . | . . . . . . Salvage Created 539 | 32 . 69 45 218 175 Parts 41 | 4 . 7 3 14 13 Haulers Intercepted . | . . . . . . Recyclers Shooed 4 | . 1 1 . 2 . Parts Field Recycled . | . . . . . . Retrieved Matter . | . . . . . . Parts Self-Destructed 3 | . . . . . 3 Prevented . | . . . . . . Parts Restored . | . . . . . . Kills | -11 -10 -9 -8 -7 -7 ------- Run | Yrd Mat Mat Mat Fac Low Combat Hostiles Destroyed 17 | . . 4 3 6 4 Melee 4 | . . . . 4 . Guns 7 | . . 4 3 . . AOE 6 | . . . . 2 4 Classes Destroyed 6 | 1 . 1 . 3 1 Tunneler 2 | 2 . . . . . Recycler 1 | . . . . 1 . Swarmer 15 | . . 4 3 4 4 Grunt 1 | . . . . 1 . Duelist 1 | . . . . 1 . Samaritan 3 | . . . . . 3 Best Kill Streak 5 | 2 . 2 3 5 4 Combat Bots Only 4 | . . 2 3 4 4 Max Kills in Single Turn 2 | 1 . 1 1 1 2 Gunslinging . | . . . . . . Exploded 2 | . . . . 1 2 Melee 1 | . . . . 1 . Uniques/NPCs Destroyed . | . . . . . . Combat | -11 -10 -9 -8 -7 -7 -------- Run | Yrd Mat Mat Mat Fac Low Hostile Shots Fired 260 | . . 103 60 87 10 Missed 92 | . . 36 21 34 1 Hits 168 | . . 67 39 53 9 Melee 1 | . . . . 1 . Projectile 167 | . . 67 39 52 9 Critical Strikes 1 | . . . 1 . . Damage Taken 2064 | . . 701 473 686 204 Core 1277 | . . 151 418 548 160 Absorbed by Shields . | . . . . . . Core Remaining (%) 71 | 100 100 62 24 . . Volleys Fired 42 | 5 . 17 9 7 4 Largest 2 | 2 . 2 1 1 1 Hottest 80 | 70 . 80 20 39 39 Shots Fired 51 | 10 . 22 9 7 3 Gun 42 | 10 . 22 9 1 . Cannon . | . . . . . . Launcher 9 | . . . . 6 3 Special . | . . . . . . Kinetic 24 | 5 . 9 9 1 . Thermal 18 | 5 . 13 . . . Explosive 9 | . . . . 6 3 Electromagnetic . | . . . . . . Robot Hit Streak 4 | 2 . 4 2 4 . Robot Miss Streak 4 | 2 . 4 3 1 . Penetration Max . | . . . . . . Secondary Targets . | . . . . . . Shots Hit Robots 30 | 5 . 7 4 10 4 Core Hits 26 | 2 . 5 3 10 6 Critical Kills . | . . . . . . Critical Parts Destroyed . | . . . . . . Critical Strikes . | . . . . . . Melee Attacks 36 | . . . . 32 4 Impact . | . . . . . . Slashing . | . . . . . . Piercing 36 | . . . . 32 4 Sneak Attacks 5 | . . . . 1 4 Combat Hostiles . | . . . . . . Follow-up Attacks . | . . . . . . Damage Inflicted 1177 | 61 3 96 52 424 541 Guns 178 | 61 . 84 33 . . Cannons . | . . . . . . Explosions 419 | . . . . 170 249 Melee 532 | . . . . 240 292 Ramming 48 | . 3 12 19 14 . Kinetic 87 | 36 . 18 33 . . Thermal 91 | 25 . 66 . . . Explosive 419 | . . . . 170 249 Electromagnetic . | . . . . . . Impact . | . . . . . . Slashing . | . . . . . . Piercing 532 | . . . . 240 292 Highest Corruption 5 | . . 1 . 5 5 Average Corruption 3 | . . 1 . 3 5 Corruption Purged . | . . . . . . Corruption Blocked . | . . . . . . Effects 11 | . . . . 7 4 Message Errors 4 | . . . . 3 1 Matter Fused 2 | . . . . 1 1 Energy Discharges 2 | . . . . 2 . Parts Rejected 1 | . . . . 1 . Data Loss (minor) 1 | . . . . . 1 Weapon Failures 1 | . . . . . 1 Overload Shots . | . . . . . . Overflow Damage 90 | . . . . 21 69 Projectiles . | . . . . . . Explosions 69 | . . . . . 69 Melee 21 | . . . . 21 . Knockbacks . | . . . . . . Impact . | . . . . . . Kinetic . | . . . . . . Secondary . | . . . . . . Self-Inflicted Damage 72 | . . 5 8 46 13 Shots 3 | . . . . 2 1 Rammed 9 | . . 2 4 3 . Targets Rammed 10 | . 1 2 4 3 . Kicked 1 | . 1 . . . . Crushed . | . . . . . . Highest Temperature 79 | 27 . 79 . . 4 Average Temperature 23 | 12 . 31 . . 4 Received Heat Transfer 483 | . . 285 135 63 . Siege Activations . | . . . . . . Martial Activations . | . . . . . . Shielding Activations . | . . . . . . Robots Disrupted . | . . . . . . Combat Hostiles . | . . . . . . Robots Corrupted . | . . . . . . Combat Hostiles . | . . . . . . Parts Fried . | . . . . . . Impact Corruptions . | . . . . . . Robots Melted . | . . . . . . Combat Hostiles . | . . . . . . Parts Melted . | . . . . . . Heat Transferred 272 | 74 . 198 . . . Parts Sabotaged . | . . . . . . Parts Stolen . | . . . . . . Parts Stripped . | . . . . . . Power Chain Reactions . | . . . . . . Alert | -11 -10 -9 -8 -7 -7 ------- Run | Yrd Mat Mat Mat Fac Low Maximum Alert Level 1 | . . . . 1 . Low Security (%) 93 | 100 100 100 100 84 . Level 1 6 | . . . . 15 . Level 2 . | . . . . . . Level 3 . | . . . . . . Level 4 . | . . . . . . Level 5 . | . . . . . . High Security . | . . . . . . Max Security . | . . . . . . Peak Influence 245 | 5 . 70 95 245 . Initial 42 | . . . . 42 . Average 44 | . . 17 43 83 . Influence Increases 742 | 10 . 110 115 417 90 Destroy 0b10 Robot/C 340 | . . 80 60 120 80 Destroy 0b10 Robot/NC 15 | 10 . . . 5 . Destroy Leader 40 | . . . 10 20 10 Successful Hack 7 | . . . . 7 . Destroy Structure 40 | . . . . 40 . Lose Combat Pursuer 300 | . . 30 45 225 . Influence Decreases 558 | 10 . 110 20 283 135 Entered New Map 138 | . . . . 53 85 Time Decay 350 | 10 . 50 20 220 50 Lost Part 70 | . . 60 . 10 . Squads Dispatched 7 | . . 1 2 4 . Investigation 2 | . . . 1 1 . Extermination 1 | . . . . 1 . Reinforcement 4 | . . 1 1 2 . Assault . | . . . . . . Garrison . | . . . . . . Intercept . | . . . . . . Searches Triggered . | . . . . . . Construction Impeded . | . . . . . . Haulers Reinforced . | . . . . . . Active Scanning Responses . | . . . . . . Cargo Convoy Interrupts . | . . . . . . Stealth | -11 -10 -9 -8 -7 -7 --------- Run | Yrd Mat Mat Mat Fac Low Distress Signals 3 | . 1 . 1 1 . Communications Jammed . | . . . . . . Distress Signals . | . . . . . . Times Spotted 70 | . 3 20 19 23 5 Peak Tracking Total 14 | . 2 11 14 6 5 Tactical Retreats 9 | . . 1 1 7 . Traps | -11 -10 -9 -8 -7 -7 ------- Run | Yrd Mat Mat Mat Fac Low Traps Triggered 6 | . 1 . 1 3 1 Indirectly . | . . . . . . Trap Hack Attempts . | . . . . . . Triggered . | . . . . . . Disarmed . | . . . . . . Reprogrammed . | . . . . . . Reused . | . . . . . . Traps Extracted . | . . . . . . Installed . | . . . . . . Triggered . | . . . . . . Machines | -11 -10 -9 -8 -7 -7 ---------- Run | Yrd Mat Mat Mat Fac Low Machines Disabled . | . . . . . . Max in Single Turn . | . . . . . . Machines Repaired . | . . . . . . Machines Dismantled . | . . . . . . Machines Sabotaged . | . . . . . . Overloaded Fab Kills . | . . . . . . Hacking | -11 -10 -9 -8 -7 -7 --------- Run | Yrd Mat Mat Mat Fac Low Machines Accessed 2 | . . . . 2 . Terminals 2 | . . . . 2 . Fabricators . | . . . . . . Repair Stations . | . . . . . . Recycling Units . | . . . . . . Scanalyzers . | . . . . . . Garrison Access . | . . . . . . Total Hacks 5 | . . . . 5 . Successful 2 | . . . . 2 . Failed 3 | . . . . 3 . Catastrophic . | . . . . . . Database Lockouts . | . . . . . . Manual 4 | . . . . 4 . Terminals 5 | . . . . 5 . Fabricators . | . . . . . . Repair Stations . | . . . . . . Recycling Units . | . . . . . . Scanalyzers . | . . . . . . Garrison Access . | . . . . . . Terminal Hacks 2 | . . . . 2 . Open DSF 1 | . . . . 1 . Branch Access Points 1 | . . . . 1 . Fabricator Hacks . | . . . . . . Repair Station Hacks . | . . . . . . Recycling Unit Hacks . | . . . . . . Scanalyzer . | . . . . . . Garrison Access Hacks . | . . . . . . Unauthorized Hacks . | . . . . . . Terminals . | . . . . . . Fabricators . | . . . . . . Repair Stations . | . . . . . . Recycling Units . | . . . . . . Scanalyzers . | . . . . . . Garrison Access . | . . . . . . Data Cores Recovered . | . . . . . . Used . | . . . . . . Hacking Detections . | . . . . . . Full Trace Events . | . . . . . . Feedback Events . | . . . . . . Feedback Blocked . | . . . . . . Robot Schematics Acquired . | . . . . . . Robots Built . | . . . . . . Authchips . | . . . . . . Time . | . . . . . . Total Robot Build Rating . | . . . . . . Part Schematics Acquired . | . . . . . . Parts Built . | . . . . . . Authchips . | . . . . . . Time . | . . . . . . Total Part Build Rating . | . . . . . . Part Studies Acquired . | . . . . . . Parts Repaired . | . . . . . . Time . | . . . . . . Parts Recycled . | . . . . . . Recycled Matter . | . . . . . . Retrieved Matter . | . . . . . . Retrieved Components . | . . . . . . Parts Scanalyzed . | . . . . . . Part Schematics Acquired . | . . . . . . Parts Damaged . | . . . . . . Bothacking | -11 -10 -9 -8 -7 -7 ------------ Run | Yrd Mat Mat Mat Fac Low Used RIF Installer . | . . . . . . Robots Hacked . | . . . . . . Non-combat . | . . . . . . Combat . | . . . . . . Robot Hacks Applied . | . . . . . . Relay Couplers Released . | . . . . . . Fabnet Peak Effective % . | . . . . . . Robots Rewired . | . . . . . . Allies Hacked . | . . . . . . Hacks Repelled . | . . . . . . Allies | -11 -10 -9 -8 -7 -7 -------- Run | Yrd Mat Mat Mat Fac Low Total Allies 1 | . . . . . 1 Largest Group 1 | . . . . . 1 Highest-Rated Group 141 | . . . . . 141 Highest-Rated Ally 141 | . . . . . 141 Total Orders . | . . . . . . Ally Attacks . | . . . . . . Total Damage . | . . . . . . Kills . | . . . . . . Allies Corrupted . | . . . . . . Allies Melted . | . . . . . . Intel | -11 -10 -9 -8 -7 -7 ------- Run | Yrd Mat Mat Mat Fac Low Active Infowar (turns) 381 | 21 186 174 . . . Seismic 381 | 21 186 174 . . . Robot Analysis Total . | . . . . . . Derelict Logs Recovered 1 | . . . . . 1 Drone Launches . | . . . . . . Drone Recoveries . | . . . . . . Exploration | -11 -10 -9 -8 -7 -7 ------------- Run | Yrd Mat Mat Mat Fac Low Turns Passed 1206 | 115 186 233 76 494 102 Spaces Moved 1336 | 54 143 160 109 707 163 Core 1012 | 19 . 14 109 707 163 Treads 7 | . . 7 . . . Legs 115 | 35 80 . . . . Wheels 202 | . 63 139 . . . Hover . | . . . . . . Flight . | . . . . . . Fastest Speed 50 | 50 105 50 50 50 50 Average Speed 68 | 138 114 105 50 51 50 Slowest Speed 250 | 250 190 240 50 150 150 Overloaded Moves . | . . . . . . Propulsion Burnouts . | . . . . . . Robots Hopped . | . . . . . . Potential Cave-ins 16 | . . . . 16 . Cave-ins Triggered . | . . . . . . Exploration Rate (%) 24 | 6 40 21 18 24 39 Regions Visited 5 Branch Regions 1 Pre-discovered Areas . | . . . . . . Known Exits Taken 1 | . . . . 1 . Unknown Exits Taken 4 | 1 1 1 1 . . Scrap Searched 1 | . . . . . 1 Spaces Dug 77 | . . . . 67 10 Terrain Destroyed 169 | . . . . 136 33 Melee 20 | . . . . 20 . Projectile . | . . . . . . AOE 149 | . . . . 116 33 Terrain Rammed . | . . . . . . Walls Destroyed . | . . . . . . Machines Disabled . | . . . . . . Actions | -11 -10 -9 -8 -7 -7 --------- Run | Yrd Mat Mat Mat Fac Low Total 1527 | 81 163 206 123 781 173 Wait 48 | 9 14 22 . 3 . Move 1332 | 53 142 159 109 706 163 Hop . | . . . . . . Pick Up 14 | 6 . . . 8 . Fast Attach 14 | 6 1 . 1 6 . Attach 9 | 1 1 3 . 3 1 Detach 7 | . 1 2 . 3 1 Swap 4 | 1 3 . . . . Drop 12 | . . 1 1 10 . Fire 42 | 5 . 17 9 7 4 Melee 36 | . . . . 32 4 Ram 8 | . . 2 3 3 . Kick 1 | . 1 . . . . Crush . | . . . . . . Escape Stasis . | . . . . . . Rewire . | . . . . . . Trap . | . . . . . . Miscellaneous . | . . . . . . Route ------- -11/Scrapyard -10/Materials (discovered 2 exits: [*Mat] / [*Min]) -9/Materials -8/Materials -7/Factory (discovered 2 exits: *Low x2) -7/Lower Caves History --------- Turn | Location | Event 31 | -11/Scrapyard | Discovered new exit (range 16) 116 | -11/Scrapyard | Entered Materials 117 | -10/Materials | Met a group of wandering Federalists 189 | -10/Materials | Discovered new exit (range 11) 280 | -10/Materials | Discovered new exit (range 15) 302 | -10/Materials | Entered another Materials area 302 | -9/Materials | Evolved 2 slots: Utility x2 314 | -9/Materials | Build established: Mutant 532 | -9/Materials | Discovered new exit (range 3) 535 | -9/Materials | Entered another Materials area 535 | -8/Materials | Evolved 2 slots: Propulsion x1, Utility x1 556 | -8/Materials | Lost 7 parts (1p2n1u3w) 604 | -8/Materials | Core integrity fell below 50% 605 | -8/Materials | Discovered new exit (range 12) 611 | -8/Materials | Entered Factory 611 | -7/Factory | Evolved 2 slots: Utility x2 730 | -7/Factory | Identified exit to Lower Caves 1038 | -7/Factory | Core integrity fell below 50% 1105 | -7/Factory | Entered Lower Caves 1110 | -7/Lower Caves | Learned Factory security intel 1141 | -7/Lower Caves | Spotted B-75 Beast 1143 | -7/Lower Caves | Core integrity fell below 20% 1207 | -7/Lower Caves | Destroyed by Dirty Bomb Trap Last Messages --------------- A strange signal echoes through the caves. VZ6107IAG Z9PZT=RMYP|>:NRPHXP/M S-27 Virus destroyed. Destroyed VTOL Module. S-27 Virus destroyed. Destroyed VTOL Module. S-27 Virus destroyed. System corrupted: Hvy. Rocket Launcher failed to launch. Destroyed VTOL Module. S-27 Virus destroyed. The unstable cave ceiling collapses. Autogun fries itself beyond repair. Acquired 11 matter. Acquired 9 matter. System corrupted: Component data lost. Acquired 14 matter. Lgt. Nuclear Core fries itself beyond repair. System corruption misinterpreted. Triggered Dirty Bomb Trap. An explosion rips through the floor. Map ----- +----------------------------------------------------+ | ?????????????????????????????????????????????????? | | ?????????????????????????????????????????????????? | | ?????????????????????????????????????????????????? | | ?????????????????????????????????????????????????? | | ?????????????????????????????????????????????????? | | ?????????????????????????????????????????????????? | | ?????????????????????????????????????????????????? | | ?????????????????????????????????????????????????? | | ?????????????????????????????????????????????????? | | ?????????????????????????????????????????????????? | | ?????????????????????????????????????????????????? | | ?????????????????????????????????????????????????? | | ?????????????????????????????????????????????????? | | ?????????????????????????????????????????????????? | | ?????????????????????????????????????????????????? | | ?????????????????????????????????????????????????? | | ?????????????????????????????????????????????????? | | ?????????????????????????????????????????????????? | | ?????????????????????####?#??????????????????????? | | ?????????????????????# # ? ??##??????????????????? | | ?????????????????????? ? ? #??????????????????? | | ????????????????????### # # #????????#####?????? | | ????????????#??????## # ? #???????# #?????? | | ????????????# ## ## #?????## ???????? | | ?????????????? # ###??## ????????? | | ????????????# # @## #?## #?????????? | | ??????????? #??# #?????????? | | ????????????????## #### ##?## #?????????? | | ?????????????????## ?????# ###### #???????#### | | ???????????????????# ###?# ### ##??????# | | ???????????????????# # # ###????# | | ???????????????????# #### ####?# | | ???????????????????##### ##??## #?# | | ???????????????????????## ##????## #?# | | ????????????????????????# ##??????### ##?# | | ??????????????????????? #?????????## #??# | | ?????????????????????# #??????????# ##??# | | ???????????????????? #??????????# ##?? | | ?????????????????? #??????????# #?? | | ?????????????????####### ??????????# #?? | | ???????????????????????# ?????????## ##? | | ??????????????????????? ?????????# ## | | ??????????????????????? ????????# | | ?????????????????????? ????????# | | ?????????????????????? ????????### | | ?????????????????????## ??????????# ## | | ???????????????????????# ?????????# ## #? | | ????????????????????????? ???????? ##### ? | | ??????????????????????????????????? ????## | | ?????????????????????????????????? ?????? | +----------------------------------------------------+ Best States ------------- Heat Dissipation 34 Energy Generation 10 Energy Capacity 250 Matter Stores 300 Matter Capacity 300 Sight Range 16 Terrain Scan Density 10 Evasion (%) 58 Launcher Accuracy 20 Recoil Reduction 2 Defensive Hacking 10 Item Schematics ----------------- None Robot Schematics ------------------ None Fabricated ------------ Nothing Repaired ---------- Nothing Studied --------- None Alien Tech Used ----------------- None Achievements -------------- None Challenges ------------ None Game ------ Seed PhasingSubatomicRouter Manual? 0 Play Time 00:24:03 Cumulative 30.1 hours Start 2025.10.27 @ 22:32:09 End 2025.10.27 @ 22:53:53 Sessions 1 Manual Loads 0 Difficulty Rogue Special Mode None Game No. 41 Rogue 41 Adventurer 0 Explorer 0 Win Type - Total 0 Types 0/0/0/0/0/0/0/0/0/0 Lore% 16 Gallery% 25 Achievement% 18 Wizard Run 0 Options --------- Layout 0 ASCII 0 Keyboard 1 Movement Numpad Keybinds 0 Fullscreen 2 Font 18/X11 Map View 76x50 Zoom Use 0% Tactical HUD 0 Map Filters NONE Filters NONE Steam 1 RUN: deaffe4c-127c-40f4-9a57-70097af02f87